[Event "FIDE WCCC Open-12 2024"]
[Site "Montesilvano"]
[Date "2024.11.25"]
[Round "10.35"]
[White "Wang, Zihao(Sh)"]
[Black "Belyaletdinov, Leonard"]
[Result "1-0"]
[ECO "B18"]
[WhiteElo "1838"]
[BlackElo "1903"]
[Annotator "RC"]
[PlyCount "81"]
[EventDate "2024.11.18"]
[EventType "swiss"]
[EventCountry "ITA"]
[SourceTitle "playchess.com"]
[Source "ChessBase"]
[SourceQuality "1"]
[TimeControl "5400+30"]

1. e4 {[%emt 0:00:06]} c6 {[%emt 0:00:03]} 2. d4 {[%emt 0:00:04]} d5 {[%emt 0:00:04]} 3. Nd2 {[%emt 0:00:03]} dxe4 {[%emt 0:00:05]} 4. Nxe4 {[%emt 0:00:02]} Bf5 {[%emt 0:00:07]} 5. Ng3 {[%emt 0:00:07]} Bg6 {[%emt 0:00:09]} 6. f4 {[%emt 0:00:58]} Nf6 {[%emt 0:00:39]} 7. Nf3 {[%emt 0:00:25]} h6 {[%emt 0:00:12]} 8. Ne5 {[%emt 0:02:40]} Bh7 {[%emt 0:00:46]} 9. Bc4 {[%emt 0:01:04]} Nd5 {[%emt 0:02:52]} 10. Qh5 {[%emt 0:01:32]} g6 {[%emt 0:00:13]} 11. Qe2 {[%emt 0:00:52]} Bg7 {[%emt 0:02:12]} 12. h4 {[%emt 0:04:33]} f6 {[%emt 0:13:54]} 13. Nf3 {[%emt 0:01:22]} O-O {[%emt 0:03:56]} 14. Bd2 {[%emt 0:00:50]} Kh8 {[%emt 0:00:42]} 15. Ne4 {[%emt 0:03:23]} Nd7 {[%emt 0:04:12]} 16. O-O-O {[%emt 0:01:25]} Qc7 {[%emt 0:01:22]} 17. Bxd5 {[%emt 0:09:57]} cxd5 {[%emt 0:04:01]} 18. Nc3 {[%emt 0:00:38]} Nb6 {[%emt 0:01:40]} 19. g4 {[%emt 0:01:22]} Rac8 {[%emt 0:07:05]} 20. g5 {[%emt 0:01:42]} Rfe8 {[%emt 0:08:07]} 21. gxh6 {[%emt 0:07:53]} Bxh6 {[%emt 0:01:05]} 22. h5 {[%emt 0:01:02]} g5 {[%emt 0:01:14]} 23. fxg5 {[%emt 0:00:41]} fxg5 {[%emt 0:05:42]} 24. Nxg5 {[%emt 0:05:29]} e5 {[%emt 0:01:14]} 25. Qf2 {[%emt 0:03:35]} Rf8 {[%emt 0:02:16]} 26. Qh4 {[%emt 0:01:01]} Nc4 {[%emt 0:12:04]} 27. Rhg1 {[%emt 0:25:19]} Qb6 {[%emt 0:04:36]} 28. Na4 {[%emt 0:00:59]} Qa6 {[%emt 0:08:26]} 29. b3 {[%emt 0:10:42]} Na3 {[%emt 0:07:48]} 30. Nc5 {[%emt 0:05:04]} Qd6 {[%emt 0:03:36]} 31. Kb2 {[%emt 0:03:59]} exd4 {[%emt 0:04:00]} 32. Qxd4+ {[%emt 0:00:54]} Bg7 {[%emt 0:01:28]} 33. Qxg7+ {[%emt 0:00:18]} Kxg7 {[%emt 0:00:05]} 34. Nge4+ {[%emt 0:00:08]} Kh8 {[%emt 0:00:54]} 35. Nxd6 {[%emt 0:00:25]} Rxc5 {[%emt 0:00:25]} 36. Kxa3 {[%emt 0:02:01]} Rxc2 {[%emt 0:00:07]} 37. Be3 {[%emt 0:00:37]} Bg8 {[%emt 0:00:51]} 38. Bd4+ {[%emt 0:00:14]} Kh7 {[%emt 0:00:07]} 39. Rg7+ {[%emt 0:00:09]} Kh6 {[%emt 0:00:07]} 40. Rdg1 {[%emt 0:00:47]} Bh7 {[%emt 0:00:50]} 41. Be3+ {[%emt 0:00:21]} 1-0

[Event "FIDE WCCC Open-12 2024"]
[Site "Montesilvano"]
[Date "2024.11.25"]
[Round "10.36"]
[White "Anagnostopoulos, Panagiotis"]
[Black "Radnaev, Leo"]
[Result "0-1"]
[ECO "A15"]
[WhiteElo "1848"]
[BlackElo "1990"]
[Annotator "RC"]
[PlyCount "168"]
[EventDate "2024.11.18"]
[EventType "swiss"]
[EventCountry "ITA"]
[SourceTitle "playchess.com"]
[Source "ChessBase"]
[SourceQuality "1"]
[TimeControl "5400+30"]

1. Nf3 {[%emt 0:00:10]} Nf6 {[%emt 0:00:03]} 2. c4 {[%emt 0:00:05]} g6 {[%emt 0:00:03]} 3. b3 {[%emt 0:00:09]} Bg7 {[%emt 0:00:05]} 4. Bb2 {[%emt 0:00:04]} O-O {[%emt 0:00:06]} 5. g3 {[%emt 0:00:04]} d6 {[%emt 0:00:06]} 6. Bg2 {[%emt 0:00:05]} e5 {[%emt 0:00:19]} 7. d3 {[%emt 0:00:05]} a5 {[%emt 0:00:12]} 8. O-O {[%emt 0:01:20]} Na6 {[%emt 0:00:58]} 9. Nfd2 {[%emt 0:02:57]} Nd7 {[%emt 0:04:50]} 10. Nc3 {[%emt 0:02:36]} c6 {[%emt 0:01:18]} 11. a3 {[%emt 0:02:38]} Rb8 {[%emt 0:05:46]} 12. Rb1 {[%emt 0:04:19]} Nf6 {[%emt 0:10:09]} 13. Na2 {[%emt 0:05:31]} Re8 {[%emt 0:05:29]} 14. b4 {[%emt 0:03:14]} axb4 {[%emt 0:03:37]} 15. axb4 {[%emt 0:00:19]} d5 {[%emt 0:05:30]} 16. b5 {[%emt 0:18:46]} cxb5 {[%emt 0:06:15]} 17. cxb5 {[%emt 0:00:20]} Nc7 {[%emt 0:01:49]} 18. b6 {[%emt 0:03:54]} Na6 {[%emt 0:03:41]} 19. Ba1 {[%emt 0:04:10]} Qd6 {[%emt 0:04:11]} 20. Qb3 {[%emt 0:03:07]} Be6 {[%emt 0:06:11]} 21. Rfc1 {[%emt 0:03:36]} Nd7 {[%emt 0:03:13]} 22. Qb5 {[%emt 0:06:22]} Rec8 {[%emt 0:03:45]} 23. Qb2 {[%emt 0:07:50]} Bf6 {[%emt 0:04:39]} 24. Qb5 {[%emt 0:03:01]} Kg7 {[%emt 0:02:52]} 25. Rxc8 {[%emt 0:03:41]} Rxc8 {[%emt 0:00:05]} 26. Qb2 {[%emt 0:03:47]} Rc6 {[%emt 0:01:54]} 27. e4 {[%emt 0:02:24]} d4 {[%emt 0:02:31]} 28. Nc1 {[%emt 0:02:54]} Rxb6 {[%emt 0:00:40]} 29. Qc2 {[%emt 0:00:49]} Rxb1 {[%emt 0:00:45]} 30. Qxb1 {[%emt 0:00:21]} Qb4 {[%emt 0:01:17]} 31. Qc2 {[%emt 0:00:27]} Qc5 {[%emt 0:01:32]} 32. Qd1 {[%emt 0:00:38]} Nb4 {[%emt 0:02:09]} 33. f4 {[%emt 0:00:51]} Qc2 {[%emt 0:05:51]} 34. Qxc2 {[%emt 0:00:25]} Nxc2 {[%emt 0:00:13]} 35. Bb2 {[%emt 0:00:07]} Nc5 {[%emt 0:00:47]} 36. fxe5 {[%emt 0:00:54]} Bg5 {[%emt 0:01:53]} 37. Nf3 {[%emt 0:00:34]} Be3+ {[%emt 0:00:19]} 38. Kf1 {[%emt 0:00:10]} Na4 {[%emt 0:00:46]} 39. Nxd4 {[%emt 0:00:34]} Bxd4 {[%emt 0:00:26]} 40. Bxd4 {[%emt 0:00:05]} Nxd4 {[%emt 0:00:02]} 41. Kf2 {[%emt 0:00:13]} Nc6 {[%emt 0:01:39]} 42. Ke3 {[%emt 0:00:05]} Nxe5 {[%emt 0:00:23]} 43. d4 {[%emt 0:00:03]} Ng4+ {[%emt 0:04:10]} 44. Kd3 {[%emt 0:00:21]} f6 {[%emt 0:06:30]} 45. d5 {[%emt 0:00:17]} Bd7 {[%emt 0:00:30]} 46. Nb3 {[%emt 0:00:10]} Kf7 {[%emt 0:00:32]} 47. Kd4 {[%emt 0:00:05]} Ke7 {[%emt 0:01:47]} 48. h3 {[%emt 0:00:07]} Nf2 {[%emt 0:00:24]} 49. h4 {[%emt 0:00:11]} Kd6 {[%emt 0:01:13]} 50. Na5 {[%emt 0:00:07]} Kc7 {[%emt 0:00:42]} 51. Nc4 {[%emt 0:00:23]} Bb5 {[%emt 0:00:42]} 52. Na3 {[%emt 0:00:26]} Ba6 {[%emt 0:00:31]} 53. e5 {[%emt 0:00:03]} fxe5+ {[%emt 0:00:56]} 54. Kxe5 {[%emt 0:00:05]} b5 {[%emt 0:00:28]} 55. Ke6 {[%emt 0:01:18]} Nc5+ {[%emt 0:00:38]} 56. Ke7 {[%emt 0:00:06]} Nb7 {[%emt 0:00:25]} 57. Nc2 {[%emt 0:01:09]} Nd6 {[%emt 0:00:38]} 58. Nd4 {[%emt 0:00:22]} Bc8 {[%emt 0:00:08]} 59. Bf1 {[%emt 0:00:59]} Bd7 {[%emt 0:00:24]} 60. Bxb5 {[%emt 0:01:53]} Nxb5 {[%emt 0:00:39]} 61. Nf3 {[%emt 0:00:25]} Nd6 {[%emt 0:00:48]} 62. Ng5 {[%emt 0:00:14]} h6 {[%emt 0:00:32]} 63. Nh7 {[%emt 0:00:13]} Nfe4 {[%emt 0:00:28]} 64. Nf8 {[%emt 0:00:21]} Bf5 {[%emt 0:00:12]} 65. g4 {[%emt 0:00:08]} Bxg4 {[%emt 0:00:47]} 66. Nxg6 {[%emt 0:00:04]} Nf5+ {[%emt 0:00:22]} 67. Kf8 {[%emt 0:00:12]} Kd6 {[%emt 0:00:37]} 68. Kg8 {[%emt 0:00:24]} Kxd5 {[%emt 0:00:28]} 69. Kh7 {[%emt 0:00:11]} Nf6+ {[%emt 0:00:18]} 70. Kh8 {[%emt 0:00:03]} Ke6 {[%emt 0:00:32]} 71. h5 {[%emt 0:00:05]} Nxh5 {[%emt 0:00:35]} 72. Kh7 {[%emt 0:00:13]} Nf6+ {[%emt 0:00:34]} 73. Kh8 {[%emt 0:00:03]} Nd5 {[%emt 0:00:29]} 74. Kh7 {[%emt 0:00:18]} h5 {[%emt 0:00:20]} 75. Kh8 {[%emt 0:00:01]} Bd1 {[%emt 0:00:45]} 76. Kh7 {[%emt 0:00:04]} Bc2 {[%emt 0:00:27]} 77. Kh8 {[%emt 0:00:06]} Bb1 {[%emt 0:00:23]} 78. Nf8+ {[%emt 0:00:07]} Kf7 {[%emt 0:00:11]} 79. Nh7 {[%emt 0:00:09]} Kg6 {[%emt 0:00:53]} 80. Nf8+ {[%emt 0:00:02]} Kg5 {[%emt 0:00:02]} 81. Kh7 {[%emt 0:00:24]} h4 {[%emt 0:00:30]} 82. Ne6+ {[%emt 0:00:03]} Kg4 {[%emt 0:00:07]} 83. Nc5 {[%emt 0:00:27]} h3 {[%emt 0:00:09]} 84. Nd7 {[%emt 0:00:14]} h2 {[%emt 0:00:15]} 0-1

[Event "FIDE WCCC Open-12 2024"]
[Site "Montesilvano"]
[Date "2024.11.25"]
[Round "10.37"]
[White "El Zein, Bassam"]
[Black "Shirinov, Yashar"]
[Result "1-0"]
[ECO "A37"]
[WhiteElo "1947"]
[BlackElo "1642"]
[Annotator "NA RC"]
[PlyCount "57"]
[EventDate "2024.11.18"]
[EventType "swiss"]
[EventCountry "ITA"]
[SourceTitle "playchess.com"]
[Source "ChessBase"]
[SourceQuality "1"]
[TimeControl "5400+30"]

1. Nf3 {[%emt 0:00:02]} c5 {[%emt 0:00:21]} 2. g3 {[%emt 0:00:14]} g6 {[%emt 0:01:10]} 3. Bg2 {[%emt 0:00:15]} Bg7 {[%emt 0:00:16]} 4. c4 {[%emt 0:00:07]} Nc6 {[%emt 0:00:48]} 5. Nc3 {[%emt 0:00:10]} e5 {[%emt 0:00:19]} 6. O-O {[%emt 0:00:13]} Nge7 {[%emt 0:02:29]} 7. a3 {[%emt 0:00:10]} d6 {[%emt 0:02:31]} 8. b4 {[%emt 0:00:48]} O-O {[%emt 0:03:48]} 9. Rb1 {[%emt 0:01:06]} f5 {[%emt 0:05:03]} 10. Ne1 {[%emt 0:01:19]} f4 {[%emt 0:20:05]} 11. d3 {[%emt 0:01:34]} cxb4 {[%emt 0:02:56]} 12. axb4 {[%emt 0:00:27]} Nf5 {[%emt 0:13:46]} 13. Nd5 {[%emt 0:04:08]} Be6 {[%emt 0:10:17]} 14. e3 {[%emt 0:03:50]} fxe3 {[%emt 0:00:17]} 15. Nxe3 {[%emt 0:00:04]} Qd7 {[%emt 0:06:23]} 16. N3c2 {[%emt 0:20:48]} Rac8 {[%emt 0:09:18]} 17. Nf3 {[%emt 0:02:07]} h6 {[%emt 0:01:00]} 18. b5 {[%emt 0:01:38]} Nce7 {[%emt 0:00:16]} 19. Re1 {[%emt 0:00:16]} g5 {[%emt 0:07:14]} 20. Ba3 {[%emt 0:05:08]} Ng6 {[%emt 0:01:14]} 21. Nd2 {[%emt 0:01:03]} Rfd8 {[%emt 0:02:22]} 22. Ne4 {[%emt 0:01:14]} Qf7 {[%emt 0:01:29]} 23. Ne3 {[%emt 0:01:13]} Bf8 {[%emt 0:01:35]} 24. Qa4 {[%emt 0:02:13]} Nd4 {[%emt 0:00:36]} 25. Bb2 {[%emt 0:03:09]} Nf3+ {[%emt 0:01:17]} 26. Bxf3 {[%emt 0:00:12]} Qxf3 {[%emt 0:00:05]} 27. Qxa7 {[%emt 0:01:30]} Rd7 {[%emt 0:01:12]} 28. Qa4 {[%emt 0:00:27]} Qh5 {[%emt 0:03:56]} 29. Nf6+ {[%emt 0:00:08]} 1-0

[Event "FIDE WCCC Open-12 2024"]
[Site "Montesilvano"]
[Date "2024.11.25"]
[Round "10.38"]
[White "Dos Santos, Leonardo Lopes"]
[Black "Padure, Dragos-Alexandru"]
[Result "0-1"]
[ECO "B23"]
[WhiteElo "1930"]
[BlackElo "1822"]
[Annotator "RC"]
[PlyCount "108"]
[EventDate "2024.11.18"]
[EventType "swiss"]
[EventCountry "ITA"]
[SourceTitle "playchess.com"]
[Source "ChessBase"]
[SourceQuality "1"]
[TimeControl "5400+30"]

1. e4 {[%emt 0:00:24]} c5 {[%emt 0:00:13]} 2. Nc3 {[%emt 0:00:22]} e6 {[%emt 0:00:38]} 3. f4 {[%emt 0:01:12]} Nc6 {[%emt 0:01:54]} 4. Bb5 {[%emt 0:01:08]} Nge7 {[%emt 0:03:22]} 5. Nf3 {[%emt 0:02:50]} a6 {[%emt 0:00:49]} 6. Be2 {[%emt 0:01:06]} d5 {[%emt 0:01:40]} 7. exd5 {[%emt 0:07:51]} Nxd5 {[%emt 0:01:11]} 8. d3 {[%emt 0:05:38]} Nxc3 {[%emt 0:03:55]} 9. bxc3 {[%emt 0:00:12]} Be7 {[%emt 0:01:14]} 10. d4 {[%emt 0:12:02]} Bf6 {[%emt 0:07:18]} 11. Be3 {[%emt 0:01:24]} O-O {[%emt 0:04:21]} 12. Ne5 {[%emt 0:09:04]} Qa5 {[%emt 0:03:52]} 13. Qd2 {[%emt 0:05:39]} Rd8 {[%emt 0:03:44]} 14. Rd1 {[%emt 0:06:25]} Nxe5 {[%emt 0:04:27]} 15. fxe5 {[%emt 0:00:08]} Bxe5 {[%emt 0:00:25]} 16. Bd3 {[%emt 0:01:43]} cxd4 {[%emt 0:06:48]} 17. cxd4 {[%emt 0:00:21]} Qxd2+ {[%emt 0:00:05]} 18. Rxd2 {[%emt 0:00:10]} Bc7 {[%emt 0:02:42]} 19. O-O {[%emt 0:01:25]} Bd7 {[%emt 0:03:11]} 20. Rdf2 {[%emt 0:03:38]} f6 {[%emt 0:01:32]} 21. Rb1 {[%emt 0:03:46]} Bc6 {[%emt 0:04:25]} 22. Bc4 {[%emt 0:04:43]} Kf7 {[%emt 0:01:01]} 23. Re2 {[%emt 0:02:13]} b5 {[%emt 0:01:34]} 24. Bb3 {[%emt 0:00:03]} Bd5 {[%emt 0:01:41]} 25. Kf2 {[%emt 0:00:07]} Rd7 {[%emt 0:06:44]} 26. a4 {[%emt 0:01:07]} Rb8 {[%emt 0:05:54]} 27. Bxd5 {[%emt 0:07:04]} Rxd5 {[%emt 0:03:04]} 28. c4 {[%emt 0:01:46]} bxc4 {[%emt 0:04:46]} 29. Rxb8 {[%emt 0:00:11]} Bxb8 {[%emt 0:00:01]} 30. Rc2 {[%emt 0:01:08]} Ba7 {[%emt 0:11:50]} 31. Rxc4 {[%emt 0:00:26]} Kg6 {[%emt 0:04:08]} 32. Rc6 {[%emt 0:06:43]} Kf5 {[%emt 0:02:13]} 33. Rxa6 {[%emt 0:02:24]} Bxd4 {[%emt 0:00:02]} 34. Bxd4 {[%emt 0:01:17]} Rxd4 {[%emt 0:00:01]} 35. Ra7 {[%emt 0:00:34]} g5 {[%emt 0:00:53]} 36. a5 {[%emt 0:00:44]} h5 {[%emt 0:00:25]} 37. a6 {[%emt 0:00:26]} Ra4 {[%emt 0:00:08]} 38. Ra8 {[%emt 0:00:08]} Ke4 {[%emt 0:00:31]} 39. a7 {[%emt 0:00:29]} e5 {[%emt 0:00:38]} 40. Rf8 {[%emt 0:01:43]} Rxa7 {[%emt 0:00:54]} 41. Rxf6 {[%emt 0:00:08]} Ra2+ {[%emt 0:00:24]} 42. Kg1 {[%emt 0:01:39]} h4 {[%emt 0:01:19]} 43. h3 {[%emt 0:00:36]} Kd3 {[%emt 0:02:56]} 44. Rf5 {[%emt 0:00:50]} e4 {[%emt 0:00:28]} 45. Rd5+ {[%emt 0:00:19]} Ke2 {[%emt 0:00:13]} 46. Rxg5 {[%emt 0:00:21]} Ra1+ {[%emt 0:01:43]} 47. Kh2 {[%emt 0:00:02]} e3 {[%emt 0:00:14]} 48. Rh5 {[%emt 0:00:11]} Kd1 {[%emt 0:00:36]} 49. Rd5+ {[%emt 0:00:52]} Ke1 {[%emt 0:00:26]} 50. Re5 {[%emt 0:00:58]} e2 {[%emt 0:00:18]} 51. Re8 {[%emt 0:00:33]} Kd2 {[%emt 0:00:27]} 52. Rd8+ {[%emt 0:00:08]} Kc3 {[%emt 0:00:14]} 53. Rc8+ {[%emt 0:00:12]} Kd4 {[%emt 0:00:07]} 54. Rd8+ {[%emt 0:00:06]} Kc5 {[%emt 0:00:04]} 0-1

[Event "FIDE WCCC Open-12 2024"]
[Site "Montesilvano"]
[Date "2024.11.25"]
[Round "10.39"]
[White "Zhang, Sean"]
[Black "Vinales Gonzalez, Enzo Mathias"]
[Result "0-1"]
[ECO "A48"]
[WhiteElo "1789"]
[BlackElo "1903"]
[Annotator "NA RC"]
[PlyCount "76"]
[EventDate "2024.11.18"]
[EventType "swiss"]
[EventCountry "ITA"]
[SourceTitle "playchess.com"]
[Source "ChessBase"]
[SourceQuality "1"]
[TimeControl "5400+30"]

1. d4 {[%emt 0:00:03]} Nf6 {[%emt 0:00:05]} 2. Bf4 {[%emt 0:00:06]} g6 {[%emt 0:00:04]} 3. e3 {[%emt 0:00:32]} Bg7 {[%emt 0:00:04]} 4. Nf3 {[%emt 0:00:16]} O-O {[%emt 0:00:14]} 5. c3 {[%emt 0:00:05]} d6 {[%emt 0:00:03]} 6. h3 {[%emt 0:00:03]} b6 {[%emt 0:00:06]} 7. Be2 {[%emt 0:00:39]} Bb7 {[%emt 0:00:06]} 8. O-O {[%emt 0:00:16]} Nbd7 {[%emt 0:00:03]} 9. a4 {[%emt 0:00:11]} Qe8 {[%emt 0:00:08]} 10. a5 {[%emt 0:01:47]} e5 {[%emt 0:01:44]} 11. Bh2 {[%emt 0:00:59]} Rb8 {[%emt 0:12:18]} 12. Nbd2 {[%emt 0:02:02]} Ne4 {[%emt 0:03:01]} 13. dxe5 {[%emt 0:03:15]} Nxe5 {[%emt 0:02:08]} 14. Nxe4 {[%emt 0:01:00]} Bxe4 {[%emt 0:00:12]} 15. Nxe5 {[%emt 0:01:46]} dxe5 {[%emt 0:00:07]} 16. axb6 {[%emt 0:02:01]} Rxb6 {[%emt 0:05:34]} 17. Qa4 {[%emt 0:16:10]} Bc6 {[%emt 0:06:04]} 18. Qc2 {[%emt 0:01:58]} a6 {[%emt 0:20:01]} 19. e4 {[%emt 0:11:41]} f5 {[%emt 0:09:07]} 20. f3 {[%emt 0:03:49]} Qe7 {[%emt 0:00:42]} 21. Rxa6 {[%emt 0:02:07]} fxe4 {[%emt 0:22:10]} 22. Rxb6 {[%emt 0:04:10]} Qc5+ {[%emt 0:05:25]} 23. Kh1 {[%emt 0:00:35]} Qxb6 {[%emt 0:04:05]} 24. fxe4 {[%emt 0:00:38]} Rb8 {[%emt 0:00:17]} 25. Bc4+ {[%emt 0:00:52]} Kh8 {[%emt 0:00:08]} 26. b3 {[%emt 0:01:02]} Qe3 {[%emt 0:00:43]} 27. Bd5 {[%emt 0:03:56]} Bxd5 {[%emt 0:03:09]} 28. exd5 {[%emt 0:00:20]} Rb5 {[%emt 0:01:45]} 29. c4 {[%emt 0:02:16]} Rxb3 {[%emt 0:01:57]} 30. Qf2 {[%emt 0:00:42]} Qxf2 {[%emt 0:00:36]} 31. Rxf2 {[%emt 0:40:43]} Rb1+ {[%emt 0:00:06]} 32. Bg1 {[%emt 0:00:00]} e4 {[%emt 0:00:12]} 33. Rd2 {[%emt 0:00:00]} Bc3 {[%emt 0:00:20]} 34. Re2 {[%emt 0:00:00]} Bd4 {[%emt 0:00:07]} 35. Rxe4 {[%emt 0:00:00]} Bxg1 {[%emt 0:00:15]} 36. g3 {[%emt 0:00:00]} Bc5+ {[%emt 0:00:15]} 37. Kg2 {[%emt 0:00:00]} Rb2+ {[%emt 0:00:17]} 38. Kf3 {[%emt 0:00:00]} Rb3+ {[%emt 0:00:07]} 0-1

[Event "FIDE WCCC Open-12 2024"]
[Site "Montesilvano"]
[Date "2024.11.25"]
[Round "10.40"]
[White "Gazzato, Nicolo`"]
[Black "Farzaleev, Daniyar"]
[Result "0-1"]
[ECO "B31"]
[WhiteElo "1868"]
[BlackElo "1622"]
[Annotator "NA RC"]
[PlyCount "123"]
[EventDate "2024.11.18"]
[EventType "swiss"]
[EventCountry "ITA"]
[SourceTitle "playchess.com"]
[Source "ChessBase"]
[SourceQuality "1"]
[TimeControl "5400+30"]

1. e4 {[%emt 0:00:16]} c5 {[%emt 0:00:05]} 2. Nf3 {[%emt 0:00:09]} Nc6 {[%emt 0:00:04]} 3. Bb5 {[%emt 0:00:09]} g6 {[%emt 0:00:04]} 4. O-O {[%emt 0:00:09]} Bg7 {[%emt 0:00:03]} 5. c3 {[%emt 0:00:08]} Nf6 {[%emt 0:00:05]} 6. Re1 {[%emt 0:00:28]} O-O {[%emt 0:00:05]} 7. d4 {[%emt 0:01:02]} cxd4 {[%emt 0:00:48]} 8. cxd4 {[%emt 0:00:07]} d5 {[%emt 0:00:03]} 9. e5 {[%emt 0:01:29]} Ne4 {[%emt 0:00:47]} 10. Bxc6 {[%emt 0:10:25]} bxc6 {[%emt 0:00:03]} 11. Nbd2 {[%emt 0:10:58]} Nxd2 {[%emt 0:09:24]} 12. Bxd2 {[%emt 0:00:35]} Qb6 {[%emt 0:03:29]} 13. Bc3 {[%emt 0:22:36]} a5 {[%emt 0:08:53]} 14. a3 {[%emt 0:06:23]} Bf5 {[%emt 0:05:23]} 15. Nh4 {[%emt 0:03:02]} Bd7 {[%emt 0:00:36]} 16. f4 {[%emt 0:09:19]} c5 {[%emt 0:06:26]} 17. Rc1 {[%emt 0:08:49]} Rfc8 {[%emt 0:08:02]} 18. Qd2 {[%emt 0:02:12]} cxd4 {[%emt 0:09:10]} 19. Bxd4 {[%emt 0:01:40]} Qb5 {[%emt 0:00:59]} 20. Rxc8+ {[%emt 0:02:19]} Rxc8 {[%emt 0:00:31]} 21. Rc1 {[%emt 0:01:25]} Rxc1+ {[%emt 0:18:38]} 22. Qxc1 {[%emt 0:00:05]} Qd3 {[%emt 0:01:02]} 23. Bc3 {[%emt 0:09:31]} a4 {[%emt 0:01:17]} 24. Qd2 {[%emt 0:01:20]} Qxd2 {[%emt 0:04:24]} 25. Bxd2 {[%emt 0:00:00]} f6 {[%emt 0:00:45]} 26. Bc3 {[%emt 0:01:13]} fxe5 {[%emt 0:03:09]} 27. fxe5 {[%emt 0:00:19]} g5 {[%emt 0:03:53]} 28. Nf3 {[%emt 0:00:02]} g4 {[%emt 0:00:04]} 29. Ne1 {[%emt 0:02:41]} Bf5 {[%emt 0:01:02]} 30. g3 {[%emt 0:00:57]} Be4 {[%emt 0:00:40]} 31. Kf2 {[%emt 0:00:41]} Kf7 {[%emt 0:00:20]} 32. e6+ {[%emt 0:02:13]} Kg6 {[%emt 0:00:13]} 33. Ke3 {[%emt 0:00:16]} Bxc3 {[%emt 0:01:16]} 34. bxc3 {[%emt 0:00:00]} Kf5 {[%emt 0:00:11]} 35. Kd4 {[%emt 0:00:35]} h5 {[%emt 0:04:17]} 36. c4 {[%emt 0:02:53]} dxc4 {[%emt 0:00:05]} 37. Kxc4 {[%emt 0:00:12]} Kxe6 {[%emt 0:00:04]} 38. Kb5 {[%emt 0:01:53]} Kd5 {[%emt 0:13:10]} 39. Kxa4 {[%emt 0:00:05]} Kc4 {[%emt 0:00:00]} 40. Ka5 {[%emt 0:00:03]} Kc3 {[%emt 0:00:00]} 41. Kb6 {[%emt 0:00:17]} Kd2 {[%emt 0:00:00]} 42. Kc5 {[%emt 0:00:15]} Kxe1 {[%emt 0:00:00]} 43. Kd4 {[%emt 0:00:02]} Bc6 {[%emt 0:00:00]} 44. Ke5 {[%emt 0:00:09]} Kf2 {[%emt 0:00:00]} 45. Kf4 {[%emt 0:00:31]} Kg2 {[%emt 0:00:00]} 46. Kg5 {[%emt 0:00:08]} Kxh2 {[%emt 0:00:00]} 47. Kh4 {[%emt 0:00:24]} Kg2 {[%emt 0:00:00]} 48. Kxh5 {[%emt 0:00:04]} Kxg3 {[%emt 0:00:00]} 49. Kg5 {[%emt 0:00:04]} Kf3 {[%emt 0:00:00]} 50. a4 {[%emt 0:00:04]} Bxa4 {[%emt 0:00:00]} 51. Kg6 {[%emt 0:00:08]} g3 {[%emt 0:00:00]} 52. Kf7 {[%emt 0:00:03]} g2 {[%emt 0:00:00]} 53. Kxe7 {[%emt 0:00:11]} g1=Q {[%emt 0:00:00]} 54. Kf6 {[%emt 0:00:01]} Qd4+ {[%emt 0:00:00]} 55. Kg5 {[%emt 0:00:05]} Qf4+ {[%emt 0:00:00]} 56. Kg6 {[%emt 0:07:25]} Be8+ {[%emt 0:00:00]} 57. Kg7 {[%emt 0:00:00]} Qf7+ {[%emt 0:00:00]} 58. Kh8 {[%emt 0:00:00]} Qf6+ {[%emt 0:00:00]} 59. Kg8 {[%emt 0:00:00]} Bf7+ {[%emt 0:00:00]} 60. Kf8 {[%emt 0:00:00]} Bg6+ {[%emt 0:00:00]} 61. Kg8 {[%emt 0:00:00]} Qf7+ {[%emt 0:00:00]} 62. Kh8 {[%emt 0:00:00]} 0-1

[Event "FIDE WCCC Open-12 2024"]
[Site "Montesilvano"]
[Date "2024.11.25"]
[Round "10.41"]
[White "Ivancic, Ivan"]
[Black "Lee, Daniel Joshua"]
[Result "1-0"]
[ECO "C54"]
[WhiteElo "2091"]
[BlackElo "1765"]
[Annotator "NA RC"]
[PlyCount "67"]
[EventDate "2024.11.18"]
[EventType "swiss"]
[EventCountry "ITA"]
[SourceTitle "playchess.com"]
[Source "ChessBase"]
[SourceQuality "1"]
[TimeControl "5400+30"]

1. e4 {[%emt 0:00:06]} e5 {[%emt 0:00:04]} 2. Nf3 {[%emt 0:00:08]} Nc6 {[%emt 0:00:04]} 3. Bc4 {[%emt 0:00:35]} Bc5 {[%emt 0:00:06]} 4. c3 {[%emt 0:00:13]} Nf6 {[%emt 0:00:03]} 5. d3 {[%emt 0:00:23]} d6 {[%emt 0:00:04]} 6. O-O {[%emt 0:00:16]} a6 {[%emt 0:00:04]} 7. Bb3 {[%emt 0:01:18]} Ba7 {[%emt 0:00:15]} 8. Nbd2 {[%emt 0:00:45]} O-O {[%emt 0:00:40]} 9. h3 {[%emt 0:00:28]} Ne7 {[%emt 0:01:09]} 10. Re1 {[%emt 0:01:01]} Ng6 {[%emt 0:01:39]} 11. Nf1 {[%emt 0:01:06]} Nh5 {[%emt 0:07:09]} 12. d4 {[%emt 0:02:12]} exd4 {[%emt 0:11:42]} 13. cxd4 {[%emt 0:00:45]} Nhf4 {[%emt 0:07:08]} 14. Ng3 {[%emt 0:02:30]} Be6 {[%emt 0:07:16]} 15. Be3 {[%emt 0:05:51]} Rb8 {[%emt 0:10:59]} 16. d5 {[%emt 0:01:19]} Bxe3 {[%emt 0:09:56]} 17. fxe3 {[%emt 0:00:31]} Nxh3+ {[%emt 0:02:24]} 18. gxh3 {[%emt 0:00:20]} Bxh3 {[%emt 0:00:04]} 19. Qc2 {[%emt 0:27:21]} Qf6 {[%emt 0:06:05]} 20. Qf2 {[%emt 0:01:35]} Rbe8 {[%emt 0:01:46]} 21. Bc4 {[%emt 0:03:13]} Ne5 {[%emt 0:15:30]} 22. Nxe5 {[%emt 0:00:37]} Qxe5 {[%emt 0:00:06]} 23. Bf1 {[%emt 0:01:04]} Bxf1 {[%emt 0:03:13]} 24. Rxf1 {[%emt 0:00:27]} c6 {[%emt 0:01:57]} 25. Rad1 {[%emt 0:00:52]} Qg5 {[%emt 0:02:06]} 26. Qf4 {[%emt 0:01:30]} Qg6 {[%emt 0:00:17]} 27. Rd2 {[%emt 0:15:21]} Re5 {[%emt 0:01:57]} 28. Rg2 {[%emt 0:02:23]} Rg5 {[%emt 0:00:57]} 29. Rff2 {[%emt 0:02:12]} cxd5 {[%emt 0:01:53]} 30. Nf5 {[%emt 0:00:58]} Rxg2+ {[%emt 0:01:22]} 31. Rxg2 {[%emt 0:00:25]} Qf6 {[%emt 0:00:18]} 32. Nh6+ {[%emt 0:02:45]} Kh8 {[%emt 0:00:07]} 33. Qxf6 {[%emt 0:00:05]} gxf6 {[%emt 0:00:07]} 34. exd5 {[%emt 0:00:09]} 1-0